bitfinex-derivatives/quotes_SOLF0:USTF0_20241021
["timestamp","ask_amount","ask_price","bid_price","bid_amount"]
[1729504544678,8.21699647,166.91,166.81,2.9989]
[1729504544882,12.70397298,166.9,166.74,67.80444153]
[1729504545076,12.70397298,166.89,166.75,4.74]
[1729504545282,12.70397298,166.88,166.85,2.9983]
[1729504545481,4.48697651,166.87,166.85,2.9983]
[1729504545776,8.21699647,166.88,166.85,2.9983]
[1729504546583,8.21699647,166.88,166.74,67.80444153]
[1729504546776,12.70627901,166.87,166.82,2.9987]
[1729504546973,4.48928254,166.86,166.81,4.74]
[1729504547178,8.21699647,166.87,166.81,4.74]
[1729504547576,8.21699647,166.87,166.83,2.9985]
[1729504547775,8.21699647,166.87,166.81,4.74]
[1729504548483,4.49048138,166.86,166.81,4.74]
[1729504548688,4.49004243,166.85,166.81,4.74]
[1729504548881,8.21699647,166.87,166.81,4.74]
[1729504549081,7.01155691,166.92,166.81,4.74]
[1729504549082,12.70578326,166.86,166.81,4.74]
[1729504549284,4.48878679,166.85,166.81,4.74]
[1729504549478,8.21699647,166.86,166.82,2.9987]
[1729504550183,12.70552812,166.85,166.8,4.68]
[1729504550386,4.48853165,166.84,166.83,2.9987]
[1729504550781,15.22855338,166.92,166.83,2.9987]
[1729504550984,5.44345518,166.92,166.84,4.68]
[1729504551184,2.6897,166.92,166.84,4.68]
[1729504551690,2.6897,166.92,166.87,2.9978]
[1729504553084,2.6897,166.92,166.86,2.9981]
[1729504553588,2.6897,166.92,166.84,4.68]
[1729504554985,2.6897,166.92,166.87,2.9978]
[1729504557793,2.6897,166.92,166.81,4.68]
[1729504557794,8.47713174,166.92,166.81,4.68]
[1729504557990,8.47713174,166.92,166.74,67.80444153]
[1729504557991,2.75375518,166.88,166.74,3.00444153]
[1729504558295,8.73575518,166.87,166.77,4.68]
[1729504558788,2.75375518,166.85,166.82,2.9987]
[1729504558983,8.73575518,166.87,166.77,4.68]
[1729504559390,21.9119906,166.9,166.77,4.68]
[1729504559391,2.75375518,166.9,166.77,4.68]
[1729504560197,2.75375518,166.91,166.88,2.9977]
[1729504560689,2.75375518,166.91,166.86,2.998]
[1729504560690,2.75375518,166.9,166.86,2.998]
[1729504561287,2.75375518,166.89,166.86,2.998]
[1729504562093,2.75375518,166.89,166.85,4.68]
[1729504562287,2.75375518,166.89,166.85,2.9982]
[1729504562597,2.75375518,166.89,166.83,4.68]
[1729504562793,2.75375518,166.87,166.76,2.9631399]
[1729504563091,2.75375518,166.87,166.77,4.68]
[1729504563291,7.24565111,166.87,166.77,4.68]
[1729504563692,2.75375518,166.88,166.77,4.68]
[1729504563893,2.75375518,166.88,166.85,2.9982]
[1729504564197,2.75375518,166.89,166.82,4.68]
[1729504564395,7.24711666,166.88,166.82,4.68]
[1729504564587,2.75375518,166.89,166.86,2.998]
[1729504565895,2.75375518,166.87,166.86,2.998]
[1729504571194,8.21699647,166.87,166.86,2.998]
[1729504572697,21.9119906,166.88,166.81,4.68]
[1729504572897,2.75803924,166.85,166.81,4.68]
[1729504573699,2.75803924,166.84,166.83,2.9986]
[1729504573901,2.75803924,166.87,166.83,2.9986]
[1729504574101,4.68,166.91,166.83,2.9986]
[1729504580699,4.68,166.91,166.8,4.68]
[1729504580899,4.68,166.91,166.82,2.9988]
[1729504581607,4.68,166.91,166.79,4.68]
[1729504582506,4.68,166.91,166.8,2.9991]
[1729504584213,2.75945615,166.83,166.8,2.9991]
[1729504584509,2.75945615,166.84,166.8,2.9991]
[1729504584908,2.75945615,166.83,166.8,2.9991]
[1729504585106,2.75945615,166.84,166.8,2.9991]
[1729504586003,2.75945615,166.84,166.81,2.999]
[1729504588905,2.75945615,166.83,166.81,2.999]
[1729504589106,2.6295,166.86,166.81,2.999]
[1729504589801,5.38895615,166.86,166.78,2.9995]
[1729504590002,5.38895615,166.86,166.77,4.68]
[1729504590204,5.38895615,166.86,166.79,2.9993]
[1729504590703,5.38895615,166.86,166.81,2.9989]
[1729504590915,2.6295,166.86,166.81,2.9989]
[1729504594922,2.6295,166.86,166.79,2.9993]
[1729504595219,2.6295,166.86,166.77,4.68]
[1729504596021,2.6295,166.86,166.81,2.9988]
[1729504596318,2.6295,166.86,166.77,4.68]
[1729504597317,2.75945615,166.89,166.77,4.68]
[1729504597515,8.27836846,166.9,166.77,4.68]
[1729504597516,2.75945615,166.9,166.77,4.68]
[1729504598118,2.75945615,166.91,166.77,4.68]
[1729504598319,7.24822934,166.91,166.77,4.68]
[1729504598520,7.24822934,166.91,166.86,2.998]
[1729504598913,7.24822934,166.91,166.84,2.92868069]
[1729504599220,2.5537,166.92,166.83,4.68]
[1729504599613,2.5537,166.92,166.76,5.9996]
[1729504599920,7.43945615,166.91,166.77,4.68]
[1729504600315,5.31315615,166.92,166.77,4.68]
[1729504600520,5.31315615,166.92,166.78,5.9992]
[1729504600721,5.31315615,166.92,166.88,2.9976]
[1729504601115,2.5537,166.92,166.88,2.9976]
[1729504602726,2.5537,166.92,166.89,2.9975]
[1729504602928,2.5537,166.92,166.84,4.68]
[1729504603226,2.5537,166.92,166.91,2.9972]
[1729504603523,2.75945615,166.95,166.88,4.68]
[1729504603719,2.75945615,166.96,166.88,4.68]
[1729504603931,7.24639451,166.96,166.93,2.9968]
[1729504604119,2.75945615,166.94,166.93,2.9968]
[1729504604323,2.75945615,166.95,166.93,2.9968]
[1729504605327,2.75945615,166.95,166.88,4.68]
[1729504605518,2.75945615,166.98,166.88,4.68]
[1729504605720,2.75945615,166.99,166.88,4.68]
[1729504605919,24.62054923,167.03,166.88,4.68]
[1729504605920,2.75945615,167.01,166.88,4.68]
[1729504606118,2.75945615,167.01,167.0,2.9956]
[1729504606433,2.75945615,167.03,166.98,4.68]
[1729504606627,2.75945615,167.03,167.02,2.9953]
[1729504606927,2.75945615,167.03,166.99,4.68]
[1729504607128,12.75549271,167.04,166.99,4.68]
[1729504607129,2.75945615,167.04,166.99,4.68]
[1729504607331,2.75945615,167.07,167.04,2.9949]
[1729504607525,7.22979083,167.07,167.04,2.9949]
[1729504607928,7.22979083,167.07,166.99,4.68]
[1729504608437,97.6679859,167.13,166.99,4.68]
[1729504608438,2.75945615,167.11,166.99,4.68]
[1729504608824,7.22503714,167.11,167.08,2.994]
[1729504609022,2.75945615,167.13,167.06,4.68]
[1729504609229,12.31982461,167.15,167.06,4.68]
[1729504609531,12.31982461,167.15,167.11,2.9935]
[1729504609532,1.282,167.15,167.11,2.9935]
[1729504609830,1.282,167.15,167.06,4.68]
[1729504610220,1.282,167.15,167.1,2.9936]
[1729504611032,1.282,167.15,167.06,4.68]
[1729504611334,1.282,167.15,167.09,2.994]
[1729504616731,5.982,167.15,167.09,2.994]
[1729504617833,1.282,167.15,167.1,2.9938]
[1729504618033,1.2589,167.19,167.07,3.01492631]
[1729504618330,5.9589,167.19,167.07,3.01492631]
[1729504618538,3.03200889,167.18,167.07,3.01492631]
[1729504619638,5.9589,167.19,167.06,4.68]
[1729504620139,8.93888136,167.19,167.06,4.68]
[1729504622233,8.93888136,167.19,167.07,4.7]
[1729504622437,8.93888136,167.19,166.98,120.19365636]
[1729504622438,8.93888136,167.19,166.98,114.20195636]
[1729504622635,11.69833751,167.19,167.05,2.9947]
[1729504622833,29.71833751,167.19,166.98,114.20195636]
[1729504623032,2.75945615,167.17,166.99,4.7]
[1729504623227,7.16859254,167.17,166.99,4.7]
[1729504623933,7.16859254,167.17,166.92,70.774]
[1729504623934,2.75945615,167.16,166.92,64.78]
[1729504624234,2.75945615,167.14,166.93,4.7]
[1729504624439,25.18859254,167.14,166.93,4.7]
[1729504624638,1.2961,167.13,166.94,4.7]
[1729504625034,1.2588,167.12,166.94,4.7]
[1729504625234,4.7,167.11,167.02,2.9951]
[1729504625633,2.97673633,167.1,167.02,2.9951]
[1729504626641,4.7,167.09,167.03,2.995]
[1729504627434,4.7,167.09,167.0,4.7]
[1729504627635,4.7,167.09,167.01,2.9953]
[1729504627835,1.2306,167.08,167.01,2.9953]
[1729504628540,1.2306,167.08,167.02,2.9952]
[1729504630845,1.2306,167.08,167.01,2.9954]
[1729504634644,1.2306,167.08,167.0,4.7]
[1729504634842,1.2306,167.08,167.03,2.995]
[1729504635740,2.75945615,167.11,167.05,2.9945]
[1729504635944,57.75995786,167.19,166.92,67.77442466]
[1729504635945,2.75945615,167.15,167.04,4.7]
[1729504636244,4.01975615,167.16,167.05,4.7]
[1729504636439,4.01975615,167.16,167.05,7.71049304]
[1729504636639,4.01975615,167.16,167.08,2.9941]
[1729504636942,1.2603,167.16,167.08,2.9941]
[1729504637352,4.01975615,167.16,167.08,2.9941]
[1729504638247,7.23423434,167.15,167.08,2.9941]
[1729504638438,2.75945615,167.15,167.08,2.9941]
[1729504638843,7.23423048,167.15,167.08,2.9941]
[1729504639140,7.23423048,167.15,167.07,2.9942]
[1729504639338,2.75945615,167.14,167.07,2.9942]
[1729504639543,7.23423048,167.14,167.07,2.9942]
[1729504639742,2.75945615,167.14,167.07,2.9942]
[1729504641043,2.75945615,167.14,167.05,4.7]
[1729504641243,2.75945615,167.14,167.08,2.9941]
[1729504641244,2.75945615,167.13,167.08,2.9941]
[1729504641446,2.75945615,167.15,167.05,4.68]
[1729504641649,2.75945615,167.15,167.01,2.9953]
[1729504641848,2.75945615,167.15,166.96,5.9926]
[1729504641849,2.75945615,167.14,166.96,5.9926]
[1729504642155,7.43945615,167.13,166.97,4.68]
[1729504642345,7.43945615,167.13,167.04,2.9948]
[1729504643353,2.75945615,167.12,167.04,2.9948]
[1729504643552,7.24823974,167.12,167.04,2.9948]
[1729504643749,1.3514,167.11,167.04,2.9948]
[1729504644849,1.3514,167.11,167.02,4.68]
[1729504645051,2.92529484,167.1,167.02,4.68]
[1729504645548,1.3577,167.09,167.02,4.68]
[1729504646654,1.3577,167.09,167.03,2.995]
[1729504646952,1.3577,167.09,166.92,67.77442466]
[1729504647146,6.0377,167.09,166.93,4.68]
[1729504647647,6.0377,167.09,167.02,2.9952]
[1729504648148,8.79715615,167.09,167.02,2.9952]
[1729504648552,6.0377,167.09,167.02,2.9952]
[1729504648856,6.0377,167.09,167.0,4.68]
[1729504648857,6.0377,167.09,167.01,2.9954]
[1729504650045,6.0377,167.09,167.0,4.68]
[1729504650251,6.0377,167.09,167.02,2.9952]
[1729504650553,1.3577,167.09,167.0,4.68]
[1729504650753,1.3577,167.09,167.05,2.9947]
[1729504651059,1.3577,167.09,167.01,3.05858234]
[1729504651653,1.3577,167.09,167.05,2.9946]
[1729504651853,1.3577,167.09,167.01,3.05858234]
[1729504652250,4.68,167.1,167.05,2.9946]
[1729504652447,4.68,167.1,167.01,3.05858234]
[1729504652854,2.6205,167.11,167.05,2.9946]
[1729504653855,2.6205,167.11,167.06,2.9945]
[1729504654359,5.37995615,167.11,167.06,2.9945]
[1729504656557,2.75945615,167.07,167.06,2.9945]
[1729504656851,8.27836846,167.07,167.06,2.9945]
[1729504657248,12.77211333,167.07,167.06,2.9945]
[1729504657758,8.27836846,167.07,167.06,2.9945]
[1729504660256,22.07564923,167.09,167.06,2.9945]
[1729504660556,26.5693941,167.08,167.06,2.9945]
[1729504660864,12.76686436,167.07,167.06,2.9945]
[1729504661059,12.76686436,167.07,167.04,4.68]
[1729504661267,7.25151776,167.06,167.05,2.9945]
[1729504661459,2.75777289,167.06,167.05,2.9945]
[1729504662164,2.75777289,167.06,167.04,4.68]
[1729504662165,2.75777289,167.07,167.04,4.68]
[1729504662367,2.75777289,167.07,167.06,2.9945]
[1729504663553,4.10917289,167.11,167.06,2.9945]
[1729504664767,2.75777289,167.11,167.06,2.9945]
[1729504665468,2.75777289,167.11,167.07,2.9943]
[1729504667768,7.25228431,167.1,167.07,2.9943]
[1729504667962,2.75777289,167.1,167.04,4.68]
[1729504668269,2.75777289,167.12,167.04,4.68]
[1729504668665,2.75777289,167.12,167.09,2.9939]
[1729504668859,2.75777289,167.12,167.04,4.68]
[1729504669061,2.75777289,167.13,167.04,4.68]
[1729504669266,3.99977289,167.14,167.04,4.68]
[1729504669468,3.99977289,167.14,167.1,2.9938]
[1729504669860,2.75777289,167.14,167.08,4.68]
[1729504670067,7.25212455,167.14,167.11,2.9936]
[1729504670265,2.75777289,167.14,167.11,2.9936]
[1729504670570,7.25212455,167.14,167.11,2.9936]
[1729504670767,2.75777289,167.14,167.11,2.9936]
[1729504671366,7.25185726,167.14,167.11,2.9936]
[1729504671670,9.58281949,167.15,167.11,2.9936]
[1729504671671,26.5697336,167.13,167.11,2.9936]
[1729504671870,4.49408437,167.12,167.11,2.9936]
[1729504672167,22.07564923,167.13,167.12,2.9935]
[1729504672873,22.07564923,167.13,167.08,4.68]
[1729504673170,2.75661334,167.1,167.09,2.994]
[1729504673372,2.75661334,167.11,167.08,4.68]
[1729504673768,2.75661334,167.11,167.1,2.9938]
[1729504676166,7.24975572,167.11,167.1,2.9938]
[1729504676369,2.75661334,167.11,167.1,2.9938]
[1729504678673,8.26984003,167.11,167.01,3.05858234]
[1729504678968,2.75370956,167.11,167.02,4.56]
[1729504679265,2.75370956,167.11,167.03,4.56]
[1729504679675,4.01960956,167.11,167.05,2.9946]
[1729504679971,2.75370956,167.1,167.05,2.9946]
[1729504680169,7.24165346,167.1,167.04,2.9948]
[1729504680471,2.75370956,167.1,167.04,2.9948]
[1729504680668,2.75370956,167.1,167.03,4.56]
[1729504680871,7.24173649,167.1,167.03,4.56]
[1729504681067,2.75370956,167.1,167.03,4.56]
[1729504681266,2.75370956,167.1,166.97,111.19848561]
[1729504681472,2.75370956,167.09,166.98,4.56]
[1729504681662,2.75370956,167.08,167.0,2.9955]
[1729504681868,8.51193229,167.08,167.0,2.9955]
[1729504682070,4.02390956,167.08,167.0,2.9955]
[1729504682376,4.02390956,167.08,167.01,2.9954]
[1729504684176,4.02390956,167.08,166.99,4.56]
[1729504685879,1.2702,167.08,166.99,4.56]
[1729504686576,1.2702,167.08,167.03,2.9949]
[1729504687479,2.75370956,167.09,167.03,4.56]
[1729504687681,2.75370956,167.11,167.07,2.9942]
[1729504687974,2.75370956,167.12,167.03,4.56]
[1729504688180,7.31370956,167.12,167.03,4.56]
[1729504688481,2.75370956,167.11,167.03,4.56]
[1729504688677,7.24642743,167.11,167.03,7.555]
[1729504688877,7.24642743,167.11,167.03,4.56]
[1729504689277,7.24642743,167.11,167.05,2.9947]
[1729504690676,3.04016932,167.1,166.97,111.19848561]
[1729504690880,5.79387888,167.1,166.97,111.19848561]
[1729504691081,5.79387888,167.1,166.98,4.56]
[1729504691082,2.75370956,167.09,166.98,4.56]
[1729504691385,7.24700941,167.09,166.98,4.56]
[1729504691579,1.2603,167.08,167.01,2.9954]
[1729504691786,5.8203,167.08,166.97,111.19848561]
[1729504692077,5.25000956,167.07,166.97,115.75848561]
[1729504692783,5.25000956,167.07,166.97,114.19448561]
[1729504692784,2.75370956,167.06,166.97,114.19448561]
[1729504692985,7.24428074,167.06,166.97,114.19448561]
[1729504693488,7.24428074,167.06,166.95,4.56]
[1729504693686,2.75370956,167.06,166.95,4.56]
[1729504693896,2.75370956,167.01,166.95,4.56]
[1729504694985,2.75370956,167.01,166.97,2.9961]
[1729504695691,2.75370956,167.0,166.95,2.9964]
[1729504696985,5.35540956,167.0,166.95,2.9964]
[1729504697597,5.35540956,167.0,166.96,2.9962]
[1729504698690,2.6017,167.0,166.93,4.56]
[1729504698893,5.35540956,167.0,166.94,2.9966]
[1729504699693,2.75370956,166.99,166.91,2.9972]
[1729504699989,2.75370956,166.98,166.91,2.9972]
[1729504700793,7.1217,167.0,166.91,2.9972]
[1729504704586,7.1217,167.0,166.94,2.9966]
[1729504705198,2.6017,167.0,166.94,2.9966]
[1729504706086,2.6017,167.0,166.9,4.52]
[1729504706491,2.6017,167.0,166.97,2.996]
[1729504708086,2.6017,167.0,166.98,2.9959]
[1729504710297,2.75370956,167.04,166.98,2.9959]
[1729504710500,7.27370956,167.05,166.94,4.52]
[1729504711700,2.75370956,167.05,166.94,4.52]
[1729504711899,7.23000318,167.05,166.94,4.52]
[1729504712105,7.23000318,167.05,166.99,2.9956]
[1729504712605,2.75370956,167.04,166.99,2.9956]
[1729504713409,2.75370956,167.04,167.0,2.9956]
[1729504713708,2.75370956,167.05,167.0,2.9956]
[1729504713909,7.23748507,167.05,167.0,2.9956]
[1729504714403,7.23748507,167.04,167.0,2.9956]
[1729504714605,2.75370956,167.04,167.0,2.9956]
[1729504715302,2.75370956,167.04,166.94,4.52]
[1729504715505,2.75370956,167.03,166.97,2.9961]
[1729504715709,2.75370956,167.02,166.97,2.9961]
[1729504716211,11.08560956,167.06,166.97,2.9961]
[1729504716508,7.23868783,167.05,166.97,2.9961]
[1729504719108,7.23868783,167.05,166.8,218.1369]
[1729504719305,2.75370956,167.04,166.85,5.9966]
[1729504719512,2.75370956,167.03,166.86,4.52]
[1729504719806,4.52,167.02,166.86,4.52]
[1729504720200,4.52,167.02,166.94,2.9965]
[1729504721408,7.27370956,167.02,166.94,2.9965]
[1729504722308,4.52,167.02,166.94,2.9965]
[1729504722509,7.27370956,167.02,166.94,2.9965]
[1729504723112,2.75370956,167.01,166.9,4.52]
[1729504723303,2.75370956,167.0,166.9,4.52]
[1729504723509,2.75370956,166.99,166.9,4.52]
[1729504723807,7.4887967,166.98,166.91,2.9972]
[1729504724209,2.75370956,166.96,166.91,2.9972]
[1729504724610,7.24058304,166.96,166.91,2.9972]
[1729504724810,2.75370956,166.96,166.91,2.9972]
[1729504729317,2.75370956,166.96,166.89,4.52]
[1729504729716,2.75370956,166.96,166.91,2.9971]
[1729504731317,7.4887967,166.98,166.91,2.9971]
[1729504734017,7.4887967,166.98,166.89,4.52]
[1729504734216,7.4887967,166.98,166.92,2.997]
[1729504735023,7.4887967,166.98,166.89,4.52]
[1729504736925,7.4887967,166.98,166.92,2.997]
[1729504739123,7.4887967,166.98,166.89,4.52]
[1729504740621,7.4887967,166.98,166.92,2.9969]
[1729504741132,2.75370956,167.01,166.93,4.46]
[1729504741326,2.75370956,167.05,166.93,4.46]
[1729504741525,7.21370956,167.05,166.98,2.9958]
[1729504741829,4.46,167.05,166.98,2.9958]
[1729504742030,4.46,167.05,166.97,4.46]
[1729504742219,4.46,167.05,166.97,7.4561]
[1729504742425,7.21370956,167.05,166.97,4.46]
[1729504742924,7.21370956,167.05,166.96,2.9962]
[1729504743424,2.75370956,167.04,166.97,2.9961]
[1729504743626,7.24636927,167.04,166.97,2.9961]
[1729504744130,7.21370956,167.05,166.97,2.9961]
[1729504744626,7.24534624,167.04,166.97,2.9961]
[1729504745226,2.75370956,167.04,166.97,2.9961]
[1729504745427,7.21370956,167.05,166.97,2.9961]
[1729504746227,2.75370956,167.04,166.97,2.9961]
[1729504746434,2.75370956,167.0,166.94,4.46]
[1729504746629,2.75370956,167.0,166.96,2.9962]
[1729504747429,2.75370956,167.0,166.94,4.46]
[1729504748429,2.75370956,167.0,166.96,2.9962]
[1729504749632,2.75370956,167.01,166.96,2.9962]
[1729504750732,8.26984003,167.01,166.94,4.46]
[1729504750932,2.75448758,167.03,166.94,4.46]
[1729504751232,2.75448758,167.04,167.02,2.9952]
[1729504751735,7.24426206,167.04,167.02,2.9952]
[1729504751925,2.75448758,167.04,167.02,2.9952]
[1729504752127,2.75448758,167.05,167.02,2.9952]
[1729504752328,7.24269963,167.05,167.02,2.9952]
[1729504752532,2.75448758,167.05,167.0,4.46]
[1729504753039,7.24243194,167.05,167.0,4.46]
[1729504753240,2.75448758,167.05,167.0,4.46]
[1729504753532,2.5777,167.06,167.0,4.46]
[1729504753834,2.5777,167.06,167.02,2.9952]
[1729504754031,4.10588758,167.09,167.0,4.46]
[1729504754235,1.3514,167.09,167.0,4.46]
[1729504754632,1.3514,167.09,167.04,2.9949]
[1729504756039,1.3514,167.09,167.0,4.46]
[1729504756238,1.3514,167.09,167.03,2.995]
[1729504760643,1.3514,167.09,167.04,2.9948]
[1729504760841,1.3514,167.09,167.0,4.46]
[1729504761039,2.5502,167.11,167.01,3.0553404]
[1729504761240,2.5502,167.11,167.05,2.9946]
[1729504761445,2.75448758,167.09,167.05,2.9946]
[1729504763445,2.75448758,167.09,167.04,7.4549]
[1729504764047,2.75448758,167.08,167.04,7.4549]
[1729504764248,7.22758497,167.08,167.04,7.4549]
[1729504764450,2.75448758,167.08,167.04,4.46]
[1729504764650,2.75448758,167.08,167.05,2.9947]
[1729504764850,2.75448758,167.08,167.04,4.46]
[1729504765354,2.75448758,167.08,167.05,2.9946]
[1729504765555,2.75448758,167.08,167.04,4.46]
[1729504765947,2.75448758,167.08,167.04,7.4549]
[1729504766143,2.75448758,167.08,167.04,4.46]
[1729504766548,2.75448758,167.08,167.04,7.4548]
[1729504766953,2.75448758,167.08,167.04,4.46]
[1729504768556,5.30468758,167.11,167.04,4.46]
[1729504768856,5.30468758,167.11,167.04,7.4548]
[1729504771652,5.30468758,167.11,167.04,4.46]
[1729504772461,2.75448758,167.1,167.04,7.4548]
[1729504772657,7.23872946,167.1,167.04,7.4548]
[1729504773159,5.30468758,167.11,167.05,2.9947]
[1729504778260,5.30468758,167.11,167.04,4.46]
[1729504778457,2.5502,167.11,167.07,2.9942]
[1729504779255,2.5502,167.11,167.08,2.9941]
[1729504779755,2.5502,167.11,167.04,4.46]
[1729504779962,2.5502,167.11,167.07,2.9943]
[1729504780159,2.75448758,167.14,167.04,4.46]
[1729504780959,2.75448758,167.14,167.1,2.9938]
[1729504781661,2.75448758,167.14,167.08,4.44]
[1729504781863,2.75448758,167.14,167.09,2.9939]
[1729504782157,2.75448758,167.13,167.09,2.9939]
[1729504782962,7.24429857,167.13,167.1,2.9938]
[1729504783268,2.75448758,167.13,167.1,2.9938]
[1729504783669,26.56789211,167.12,167.1,2.9938]
[1729504783856,4.49224288,167.11,167.1,2.9938]
[1729504784564,22.07564923,167.12,167.1,2.9938]
[1729504785768,22.07564923,167.12,167.08,4.44]
[1729504786070,8.27480442,167.1,167.09,2.994]
[1729504788969,4.49224288,167.1,167.09,2.994]
[1729504789164,22.07564923,167.11,167.09,2.994]
[1729504789767,22.07564923,167.11,167.08,2.9942]
[1729504789975,8.27550877,167.09,167.08,2.9942]
[1729504791769,2.75822731,167.13,167.08,2.9942]
[1729504792675,2.75822731,167.13,167.07,4.44]
[1729504792874,2.75822731,167.13,167.01,2.94909581]
[1729504793173,2.75822731,167.1,167.02,4.44]
[1729504793374,2.75822731,167.1,167.03,4.44]
[1729504793972,2.75822731,167.1,167.05,2.9947]
[1729504794177,2.75822731,167.1,167.03,4.44]
[1729504794478,5.32782731,167.12,167.03,4.44]
[1729504795179,2.5696,167.12,167.07,2.9943]
[1729504795677,5.32782731,167.12,167.07,2.9943]
[1729504797577,5.32782731,167.12,167.08,2.9941]
[1729504798783,2.75822731,167.09,167.08,2.9941]
[1729504799582,4.49752649,167.09,167.08,2.9941]
[1729504799781,8.27550877,167.1,167.08,2.9941]
[1729504800185,12.77303526,167.09,167.08,2.9941]
[1729504800380,8.27550877,167.09,167.08,2.9941]
[1729504801581,2.75991858,167.1,167.07,4.44]
[1729504801780,2.75991858,167.1,167.09,2.994]
[1729504802182,7.25833743,167.1,167.07,4.44]
[1729504802383,2.75991858,167.11,167.07,4.44]
[1729504802893,2.75991858,167.13,167.07,4.44]
[1729504803390,2.75991858,167.13,167.08,4.44]
[1729504803588,2.75991858,167.12,167.09,4.44]
[1729504803890,7.25832663,167.12,167.11,2.9936]
[1729504804087,4.49840805,167.12,167.11,2.9936]
[1729504804291,4.49840805,167.12,167.08,2.9941]
[1729504804487,2.75834179,167.09,167.01,3.04051788]
[1729504804695,2.75834179,167.09,167.03,2.9949]
[1729504804696,2.75834179,167.08,167.03,2.9949]
[1729504804890,2.75834179,167.07,167.04,4.44]
[1729504805089,7.25674984,167.07,167.03,4.44]
[1729504805290,2.75834179,167.07,167.04,4.44]
[1729504805496,2.75834179,167.06,167.05,2.9947]
[1729504806295,2.75834179,167.07,167.04,4.44]
[1729504806486,2.75834179,167.09,167.04,4.44]
[1729504806689,4.09084179,167.14,167.01,3.05854815]
[1729504806890,2.75834179,167.12,167.07,2.9942]
[1729504807186,5.69464389,167.12,167.03,2.95547795]
[1729504807386,5.69464389,167.12,167.02,4.44]
[1729504807387,10.19172954,167.12,167.02,4.44]
[1729504807592,5.69464389,167.12,167.06,2.9944]
[1729504807796,2.75834179,167.11,167.04,4.44]
[1729504807995,7.25568355,167.11,167.05,2.9947]
[1729504808195,2.75834179,167.1,167.05,2.9947]
[1729504809097,2.75834179,167.1,167.06,2.9945]
[1729504809987,2.75834179,167.1,167.06,2.9944]
[1729504810187,2.75834179,167.1,167.04,4.44]
[1729504810391,2.75834179,167.11,167.04,4.44]
[1729504810592,2.75834179,167.12,167.08,2.994]
[1729504810790,7.25233361,167.12,167.08,2.994]
[1729504811893,7.25233361,167.12,167.07,2.9942]
[1729504812089,7.25233361,167.12,167.04,4.44]
[1729504812596,10.24675994,167.12,167.04,4.44]
[1729504812797,7.25305844,167.11,167.04,4.44]
[1729504813593,2.75834179,167.1,167.04,4.44]
[1729504813800,2.75834179,167.07,167.05,2.9947]
[1729504814188,2.75834179,167.07,167.06,2.9945]
[1729504815097,12.76974203,167.07,167.06,2.9945]
[1729504815293,8.27502538,167.07,167.06,2.9945]
[1729504815796,12.76974203,167.07,167.06,2.9945]
[1729504816101,8.27502538,167.07,167.06,2.9945]
[1729504816500,12.76974203,167.07,167.06,2.9945]
[1729504816798,7.2543093,167.07,167.06,2.9945]
[1729504816998,2.75959265,167.07,167.06,2.9945]
[1729504821503,2.75959265,167.08,167.06,2.9945]
[1729504821903,10.19401898,167.12,167.06,2.9945]
[1729504822104,10.19401898,167.12,167.04,4.44]
[1729504822292,7.25791057,167.11,167.07,2.9943]
[1729504823002,2.75959265,167.11,167.05,2.9947]
[1729504823400,7.25763089,167.11,167.05,2.9947]
[1729504824097,7.25763089,167.11,167.04,4.44]
[1729504824404,7.25763089,167.11,167.06,2.9945]
[1729504831606,2.75959265,167.1,167.06,2.9945]
[1729504832607,2.75959265,167.11,167.06,2.9945]
[1729504832810,7.25979974,167.11,167.06,2.9945]
[1729504833906,2.75959265,167.11,167.06,2.9945]
[1729504834107,7.25942581,167.11,167.06,2.9945]
[1729504834303,2.75959265,167.1,167.07,2.9943]